[Event "9th RTU Open 2019"]
[Site "Riga"]
[Date "2019.08.07"]
[Round "4.19"]
[White "Salomon, Johan"]
[Black "Heinemann, Josefine"]
[Result "1-0"]
[ECO "A34"]
[WhiteElo "2514"]
[BlackElo "2255"]
[Annotator "ChessBase"]
[PlyCount "185"]
[EventDate "2019.08.05"]
[EventType "swiss"]
[EventCountry "LAT"]
[SourceTitle "playchess.com"]
[Source "ChessBase"]
[SourceQuality "1"]
[TimeControl "5400+30"]

1. c4 {[%emt 0:00:00]} c5 {[%emt 0:00:00]} 2. Nc3 {[%emt 0:00:00]} Nf6 {[%emt 0:00:00]} 3. g3 {[%emt 0:00:00]} d5 {[%emt 0:00:00]} 4. cxd5 {[%emt 0:00:00]} Nxd5 {[%emt 0:00:00]} 5. Bg2 {[%emt 0:00:04]} Nc7 {[%emt 0:00:04]} 6. d3 {[%emt 0:00:07]} e5 {[%emt 0:00:13]} 7. Nf3 {[%emt 0:00:06]} Nc6 {[%emt 0:00:05]} 8. Nd2 {[%emt 0:00:06]} Bd7 {[%emt 0:02:50]} 9. O-O {[%emt 0:00:25]} Be7 {[%emt 0:00:15]} 10. Nc4 {[%emt 0:00:18]} f6 {[%emt 0:01:18]} 11. f4 {[%emt 0:00:14]} O-O {[%emt 0:03:16]} 12. fxe5 {[%emt 0:07:23]} fxe5 {[%emt 0:00:25]} 13. Rxf8+ {[%emt 0:00:22]} Bxf8 {[%emt 0:03:07]} 14. a4 {[%emt 0:29:33]} Rb8 {[%emt 0:09:42]} 15. Be3 {[%emt 0:02:05]} Qe7 {[%emt 0:08:08]} 16. Qd2 {[%emt 0:09:06]} Nd4 {[%emt 0:07:26]} 17. Rf1 {[%emt 0:05:11]} Bc6 {[%emt 0:10:27]} 18. Bxc6 {[%emt 0:01:19]} Nxc6 {[%emt 0:00:08]} 19. Qd1 {[%emt 0:05:46]} Qe6 {[%emt 0:06:06]} 20. Ne4 {[%emt 0:02:09]} b6 {[%emt 0:01:33]} 21. Ng5 {[%emt 0:00:43]} Qd5 {[%emt 0:02:32]} 22. Rf5 {[%emt 0:03:28]} Be7 {[%emt 0:03:53]} 23. Ne4 {[%emt 0:00:08]} Qe6 {[%emt 0:03:38]} 24. Rf1 {[%emt 0:01:16]} h6 {[%emt 0:02:30]} 25. Bd2 {[%emt 0:01:38]} Nd5 {[%emt 0:01:01]} 26. Qe1 {[%emt 0:02:32]} Nf6 {[%emt 0:03:37]} 27. Nxf6+ {[%emt 0:00:53]} Bxf6 {[%emt 0:00:04]} 28. Bc3 {[%emt 0:02:33]} Rf8 {[%emt 0:01:10]} 29. e4 {[%emt 0:03:53]} Rd8 {[%emt 0:01:38]} 30. Qe2 {[%emt 0:00:26]} Ne7 {[%emt 0:01:59]} 31. Ne3 {[%emt 0:02:46]} Kh7 {[%emt 0:06:10]} 32. Ng4 {[%emt 0:01:19]} Ng8 {[%emt 0:02:17]} 33. Qf3 {[%emt 0:03:03]} Rd6 {[%emt 0:04:21]} 34. Kg2 {[%emt 0:01:45]} Qd7 {[%emt 0:04:28]} 35. Nxe5 {[%emt 0:02:00]} Bxe5 {[%emt 0:00:05]} 36. Bxe5 {[%emt 0:00:04]} Rxd3 {[%emt 0:00:10]} 37. Qf5+ {[%emt 0:00:15]} Qxf5 {[%emt 0:00:07]} 38. Rxf5 {[%emt 0:00:09]} Kg6 {[%emt 0:01:27]} 39. Rf3 {[%emt 0:05:12]} Rd2+ {[%emt 0:00:15]} 40. Rf2 {[%emt 0:00:05]} Rd3 {[%emt 0:00:02]} 41. Bb8 {[%emt 0:00:33]} a6 {[%emt 0:01:33]} 42. Ba7 {[%emt 0:02:05]} Re3 {[%emt 0:01:01]} 43. Bxb6 {[%emt 0:00:21]} Rxe4 {[%emt 0:00:03]} 44. a5 {[%emt 0:00:33]} c4 {[%emt 0:00:12]} 45. Kf3 {[%emt 0:00:55]} Re5 {[%emt 0:00:19]} 46. Rc2 {[%emt 0:00:13]} Rb5 {[%emt 0:00:11]} 47. Rxc4 {[%emt 0:01:10]} Rb3+ {[%emt 0:00:34]} 48. Rc3 {[%emt 0:00:42]} Rxb2 {[%emt 0:00:15]} 49. Rc6+ {[%emt 0:01:07]} Nf6 {[%emt 0:01:58]} 50. Bf2 {[%emt 0:00:30]} Kf5 {[%emt 0:00:54]} 51. Rxa6 {[%emt 0:01:00]} Ng4 {[%emt 0:00:58]} 52. Bd4 {[%emt 0:01:46]} Nxh2+ {[%emt 0:00:41]} 53. Ke3 {[%emt 0:00:07]} Rb3+ {[%emt 0:01:06]} 54. Ke2 {[%emt 0:00:26]} Rxg3 {[%emt 0:00:40]} 55. Ra8 {[%emt 0:00:17]} Rg2+ {[%emt 0:00:52]} 56. Kd3 {[%emt 0:01:00]} Nf3 {[%emt 0:00:38]} 57. Rf8+ {[%emt 0:00:57]} Kg4 {[%emt 0:00:05]} 58. Bxg7 {[%emt 0:00:31]} h5 {[%emt 0:00:06]} 59. Bc3 {[%emt 0:02:02]} Ra2 {[%emt 0:01:07]} 60. Kc4 {[%emt 0:01:19]} Nd2+ {[%emt 0:00:26]} 61. Kb4 {[%emt 0:01:06]} Ne4 {[%emt 0:00:44]} 62. Be5 {[%emt 0:00:50]} Nc5 {[%emt 0:01:15]} 63. Kxc5 {[%emt 0:00:23]} Rxa5+ {[%emt 0:00:01]} 64. Kd4 {[%emt 0:00:09]} Ra4+ {[%emt 0:01:39]} 65. Ke3 {[%emt 0:00:07]} h4 {[%emt 0:00:29]} 66. Rf1 {[%emt 0:00:23]} h3 {[%emt 0:00:26]} 67. Rf8 {[%emt 0:01:25]} h2 {[%emt 0:00:32]} 68. Bxh2 {[%emt 0:00:15]} Kg5 {[%emt 0:00:10]} 69. Be5 {[%emt 0:00:10]} Kg6 {[%emt 0:00:22]} 70. Bd4 {[%emt 0:00:08]} Ra2 {[%emt 0:02:02]} 71. Kf4 {[%emt 0:00:45]} Ra5 {[%emt 0:01:58]} 72. Rf6+ {[%emt 0:00:27]} Kh7 {[%emt 0:00:16]} 73. Be5 {[%emt 0:01:29]} Ra2 {[%emt 0:02:05]} 74. Kf5 {[%emt 0:00:22]} Rf2+ {[%emt 0:00:38]} 75. Bf4 {[%emt 0:00:02]} Rf1 {[%emt 0:00:31]} 76. Ke6 {[%emt 0:02:03]} Rg1 {[%emt 0:00:36]} 77. Rh6+ {[%emt 0:00:38]} Kg7 {[%emt 0:00:20]} 78. Rh2 {[%emt 0:00:08]} Kg6 {[%emt 0:00:32]} 79. Rh8 {[%emt 0:00:18]} Rg4 {[%emt 0:01:23]} 80. Be5 {[%emt 0:00:26]} Rg5 {[%emt 0:00:57]} 81. Bf4 {[%emt 0:00:42]} Rg4 {[%emt 0:00:04]} 82. Ke5 {[%emt 0:00:08]} Kg7 {[%emt 0:00:35]} 83. Ra8 {[%emt 0:00:04]} Rg1 {[%emt 0:01:37]} 84. Kf5 {[%emt 0:00:09]} Rf1 {[%emt 0:00:13]} 85. Ra7+ {[%emt 0:00:25]} Kf8 {[%emt 0:00:03]} 86. Ke5 {[%emt 0:00:16]} Kg8 {[%emt 0:00:25]} 87. Bg5 {[%emt 0:01:14]} Rf7 {[%emt 0:00:02]} 88. Be7 {[%emt 0:00:21]} Rf1 {[%emt 0:01:19]} 89. Bf6 {[%emt 0:00:08]} Kf8 {[%emt 0:00:41]} 90. Ke6 {[%emt 0:00:10]} Re1+ {[%emt 0:00:32]} 91. Be5 {[%emt 0:00:08]} Kg8 {[%emt 0:00:09]} 92. Ra2 {[%emt 0:01:47]} Rf1 {[%emt 0:00:58]} 93. Rh2 {[%emt 0:00:20]} 1-0

[Event "9th RTU Open 2019"]
[Site "Riga"]
[Date "2019.08.07"]
[Round "4.20"]
[White "Afanasiev, Vadim"]
[Black "Jurcik, Marian"]
[Result "1/2-1/2"]
[ECO "D31"]
[WhiteElo "2263"]
[BlackElo "2501"]
[Annotator "ChessBase"]
[PlyCount "28"]
[EventDate "2019.08.05"]
[EventType "swiss"]
[EventCountry "LAT"]
[SourceTitle "playchess.com"]
[Source "ChessBase"]
[SourceQuality "1"]
[TimeControl "5400+30"]

1. d4 {[%emt 0:00:00]} d5 {[%emt 0:00:00]} 2. c4 {[%emt 0:00:00]} e6 {[%emt 0:00:21]} 3. Nc3 {[%emt 0:00:00]} a6 {[%emt 0:00:32]} 4. cxd5 {[%emt 0:01:34]} exd5 {[%emt 0:00:10]} 5. Bf4 {[%emt 0:00:19]} Nf6 {[%emt 0:00:52]} 6. e3 {[%emt 0:00:24]} Bd6 {[%emt 0:00:29]} 7. Bg5 {[%emt 0:01:37]} Be6 {[%emt 0:05:52]} 8. Bd3 {[%emt 0:01:02]} h6 {[%emt 0:06:02]} 9. Bh4 {[%emt 0:02:03]} Nbd7 {[%emt 0:00:34]} 10. f4 {[%emt 0:03:16]} Nb6 {[%emt 0:29:57]} 11. Nf3 {[%emt 0:03:27]} Bg4 {[%emt 0:01:45]} 12. h3 {[%emt 0:06:37]} Bxf3 {[%emt 0:00:08]} 13. Qxf3 {[%emt 0:00:07]} Be7 {[%emt 0:00:56]} 14. O-O-O {[%emt 0:09:36]} Qd6 {[%emt 0:08:51]} 1/2-1/2

[Event "9th RTU Open 2019"]
[Site "Riga"]
[Date "2019.08.07"]
[Round "4.21"]
[White "Siniauski, Artsiom"]
[Black "Zanan, Evgeny"]
[Result "1/2-1/2"]
[ECO "B28"]
[WhiteElo "2205"]
[BlackElo "2505"]
[Annotator "ChessBase"]
[PlyCount "50"]
[EventDate "2019.08.05"]
[EventType "swiss"]
[EventCountry "LAT"]
[SourceTitle "playchess.com"]
[Source "ChessBase"]
[SourceQuality "1"]
[TimeControl "5400+30"]

1. e4 {[%emt 0:00:00]} c5 {[%emt 0:00:17]} 2. Nf3 {[%emt 0:00:00]} a6 {[%emt 0:00:12]} 3. c4 {[%emt 0:00:27]} Nc6 {[%emt 0:04:09]} 4. Nc3 {[%emt 0:01:59]} e5 {[%emt 0:03:20]} 5. Be2 {[%emt 0:03:19]} d6 {[%emt 0:01:19]} 6. a3 {[%emt 0:06:51]} a5 {[%emt 0:07:26]} 7. d3 {[%emt 0:03:18]} Be7 {[%emt 0:04:04]} 8. Nd5 {[%emt 0:07:02]} f5 {[%emt 0:02:29]} 9. Qb3 {[%emt 0:11:49]} Ra6 {[%emt 0:10:43]} 10. Be3 {[%emt 0:09:30]} Nf6 {[%emt 0:01:45]} 11. exf5 {[%emt 0:01:26]} Nxd5 {[%emt 0:10:24]} 12. cxd5 {[%emt 0:00:15]} Nd4 {[%emt 0:06:11]} 13. Bxd4 {[%emt 0:04:25]} a4 {[%emt 0:08:05]} 14. Qb5+ {[%emt 0:07:03]} Bd7 {[%emt 0:00:08]} 15. Qxb7 {[%emt 0:00:12]} Rb6 {[%emt 0:00:05]} 16. Qa7 {[%emt 0:00:09]} exd4 {[%emt 0:08:19]} 17. Nd2 {[%emt 0:02:07]} Rxb2 {[%emt 0:08:34]} 18. Nc4 {[%emt 0:11:56]} Rb8 {[%emt 0:02:12]} 19. Bh5+ {[%emt 0:02:51]} Kf8 {[%emt 0:00:36]} 20. Bg4 {[%emt 0:00:24]} h5 {[%emt 0:06:24]} 21. Bh3 {[%emt 0:01:27]} Bb5 {[%emt 0:00:11]} 22. O-O {[%emt 0:03:59]} Ra8 {[%emt 0:01:04]} 23. Qb7 {[%emt 0:01:30]} Rb8 {[%emt 0:00:11]} 24. Qa7 {[%emt 0:00:30]} Ra8 {[%emt 0:00:05]} 25. Qb7 {[%emt 0:02:26]} Rb8 {[%emt 0:00:05]} 1/2-1/2

[Event "9th RTU Open 2019"]
[Site "Riga"]
[Date "2019.08.07"]
[Round "4.22"]
[White "Olde, Margareth"]
[Black "Hirneise, Tobias"]
[Result "0-1"]
[ECO "D12"]
[WhiteElo "2126"]
[BlackElo "2459"]
[Annotator "ChessBase"]
[PlyCount "62"]
[EventDate "2019.08.05"]
[EventType "swiss"]
[EventCountry "LAT"]
[SourceTitle "playchess.com"]
[Source "ChessBase"]
[SourceQuality "1"]
[TimeControl "5400+30"]

1. d4 {[%emt 0:00:00]} d5 {[%emt 0:08:43]} 2. c4 {[%emt 0:00:00]} c6 {[%emt 0:00:11]} 3. Nf3 {[%emt 0:00:00]} Nf6 {[%emt 0:00:08]} 4. e3 {[%emt 0:00:00]} Bf5 {[%emt 0:00:05]} 5. Nc3 {[%emt 0:00:03]} e6 {[%emt 0:00:02]} 6. Nh4 {[%emt 0:00:18]} Be4 {[%emt 0:00:02]} 7. f3 {[%emt 0:00:10]} Bg6 {[%emt 0:00:03]} 8. Qb3 {[%emt 0:00:16]} Qc7 {[%emt 0:00:01]} 9. Bd2 {[%emt 0:00:29]} Be7 {[%emt 0:00:07]} 10. g3 {[%emt 0:00:13]} O-O {[%emt 0:00:44]} 11. Nxg6 {[%emt 0:00:38]} hxg6 {[%emt 0:00:04]} 12. Rc1 {[%emt 0:04:29]} Qd7 {[%emt 0:00:19]} 13. cxd5 {[%emt 0:08:41]} cxd5 {[%emt 0:04:55]} 14. Bb5 {[%emt 0:08:16]} Nc6 {[%emt 0:00:08]} 15. O-O {[%emt 0:00:19]} Rfc8 {[%emt 0:07:58]} 16. Na4 {[%emt 0:13:03]} Bd6 {[%emt 0:02:47]} 17. Rc2 {[%emt 0:06:36]} g5 {[%emt 0:14:26]} 18. g4 {[%emt 0:12:59]} Qe7 {[%emt 0:10:14]} 19. Nc5 {[%emt 0:14:49]} e5 {[%emt 0:14:31]} 20. Nxb7 {[%emt 0:12:37]} Nxd4 {[%emt 0:00:23]} 21. exd4 {[%emt 0:00:04]} Qxb7 {[%emt 0:07:13]} 22. Rxc8+ {[%emt 0:00:04]} Rxc8 {[%emt 0:00:32]} 23. dxe5 {[%emt 0:02:55]} Bxe5 {[%emt 0:00:57]} 24. Bxg5 {[%emt 0:01:26]} Rb8 {[%emt 0:01:51]} 25. Ba4 {[%emt 0:07:09]} Qa6 {[%emt 0:08:07]} 26. Qd1 {[%emt 0:00:04]} Rxb2 {[%emt 0:01:39]} 27. f4 {[%emt 0:01:50]} Nxg4 {[%emt 0:01:25]} 28. Bc2 {[%emt 0:04:44]} Qb6+ {[%emt 0:02:17]} 29. Kh1 {[%emt 0:00:15]} Nf2+ {[%emt 0:00:26]} 30. Rxf2 {[%emt 0:00:16]} Qxf2 {[%emt 0:00:05]} 31. Bh4 {[%emt 0:01:32]} Qxc2 {[%emt 0:00:35]} 0-1

[Event "9th RTU Open 2019"]
[Site "Riga"]
[Date "2019.08.07"]
[Round "4.23"]
[White "Usmanov, Vasily"]
[Black "Shailesh, Dravid"]
[Result "1/2-1/2"]
[ECO "A48"]
[WhiteElo "2443"]
[BlackElo "2254"]
[Annotator "NA"]
[PlyCount "137"]
[EventDate "2019.08.05"]
[EventType "swiss"]
[EventCountry "LAT"]
[SourceTitle "playchess.com"]
[Source "ChessBase"]
[SourceQuality "1"]
[TimeControl "5400+30"]

1. d4 {[%emt 0:00:00]} Nf6 {[%emt 0:01:39]} 2. Nf3 {[%emt 0:00:00]} g6 {[%emt 0:00:08]} 3. Bf4 {[%emt 0:00:00]} Bg7 {[%emt 0:00:21]} 4. e3 {[%emt 0:00:00]} O-O {[%emt 0:00:30]} 5. Be2 {[%emt 0:00:00]} d6 {[%emt 0:00:18]} 6. O-O {[%emt 0:00:00]} Nbd7 {[%emt 0:00:40]} 7. h3 {[%emt 0:00:43]} b6 {[%emt 0:00:16]} 8. a4 {[%emt 0:00:33]} a5 {[%emt 0:02:51]} 9. Nbd2 {[%emt 0:10:02]} Bb7 {[%emt 0:00:19]} 10. c3 {[%emt 0:00:02]} Qe8 {[%emt 0:02:14]} 11. Bb5 {[%emt 0:00:46]} e6 {[%emt 0:06:10]} 12. Qc2 {[%emt 0:05:04]} Qe7 {[%emt 0:03:24]} 13. e4 {[%emt 0:04:48]} Nh5 {[%emt 0:07:54]} 14. Bg5 {[%emt 0:02:31]} f6 {[%emt 0:04:47]} 15. Be3 {[%emt 0:02:42]} f5 {[%emt 0:00:46]} 16. Bg5 {[%emt 0:04:05]} Bf6 {[%emt 0:05:17]} 17. Bh6 {[%emt 0:07:02]} Bg7 {[%emt 0:00:09]} 18. Bg5 {[%emt 0:00:18]} Bf6 {[%emt 0:00:08]} 19. Bh6 {[%emt 0:01:47]} Bg7 {[%emt 0:00:05]} 20. Bxg7 {[%emt 0:00:02]} Nxg7 {[%emt 0:01:36]} 21. e5 {[%emt 0:00:37]} d5 {[%emt 0:03:23]} 22. Qb3 {[%emt 0:07:34]} h6 {[%emt 0:03:44]} 23. Qa3 {[%emt 0:02:08]} Qf7 {[%emt 0:01:42]} 24. h4 {[%emt 0:01:13]} Ba6 {[%emt 0:05:55]} 25. Rfc1 {[%emt 0:05:03]} Bb7 {[%emt 0:07:28]} 26. g3 {[%emt 0:03:33]} Rfc8 {[%emt 0:01:37]} 27. b4 {[%emt 0:02:02]} c6 {[%emt 0:02:45]} 28. Be2 {[%emt 0:00:03]} Ne8 {[%emt 0:03:52]} 29. Nb3 {[%emt 0:05:04]} axb4 {[%emt 0:07:55]} 30. cxb4 {[%emt 0:00:04]} Qf8 {[%emt 0:00:12]} 31. Ne1 {[%emt 0:08:02]} Nc7 {[%emt 0:01:01]} 32. Nd3 {[%emt 0:02:34]} Ba6 {[%emt 0:01:19]} 33. Rxc6 {[%emt 0:07:35]} Bb5 {[%emt 0:01:00]} 34. Rd6 {[%emt 0:00:03]} Bxa4 {[%emt 0:01:47]} 35. Qb2 {[%emt 0:01:59]} Qe7 {[%emt 0:00:35]} 36. Nf4 {[%emt 0:01:12]} g5 {[%emt 0:00:12]} 37. hxg5 {[%emt 0:00:06]} hxg5 {[%emt 0:00:04]} 38. Nh5 {[%emt 0:01:22]} Ne8 {[%emt 0:00:43]} 39. Rxa4 {[%emt 0:01:31]} Rxa4 {[%emt 0:00:54]} 40. Bb5 {[%emt 0:00:16]} Ra7 {[%emt 0:04:16]} 41. Bxd7 {[%emt 0:00:06]} Rxd7 {[%emt 0:00:17]} 42. Rxb6 {[%emt 0:00:02]} Qf7 {[%emt 0:03:15]} 43. Qe2 {[%emt 0:00:53]} Ra7 {[%emt 0:04:31]} 44. Nc5 {[%emt 0:00:36]} Ra1+ {[%emt 0:01:15]} 45. Kg2 {[%emt 0:00:03]} g4 {[%emt 0:00:08]} 46. Ra6 {[%emt 0:00:38]} Rb1 {[%emt 0:02:33]} 47. Qc2 {[%emt 0:03:07]} Rxb4 {[%emt 0:00:53]} 48. Qd2 {[%emt 0:00:02]} Qxh5 {[%emt 0:04:10]} 49. Qxb4 {[%emt 0:00:09]} Rc7 {[%emt 0:00:06]} 50. Rxe6 {[%emt 0:02:04]} Rh7 {[%emt 0:00:43]} 51. Rxe8+ {[%emt 0:00:17]} Qxe8 {[%emt 0:00:05]} 52. Qb3 {[%emt 0:00:14]} Qf7 {[%emt 0:01:27]} 53. Qb8+ {[%emt 0:04:29]} Kg7 {[%emt 0:00:37]} 54. Qd8 {[%emt 0:02:35]} Rh6 {[%emt 0:01:42]} 55. Qg5+ {[%emt 0:05:23]} Rg6 {[%emt 0:00:32]} 56. Qe3 {[%emt 0:00:33]} Rh6 {[%emt 0:02:29]} 57. Qg5+ {[%emt 0:00:47]} Rg6 {[%emt 0:00:04]} 58. Qe3 {[%emt 0:00:50]} Rh6 {[%emt 0:00:02]} 59. Kf1 {[%emt 0:02:10]} Rh1+ {[%emt 0:01:32]} 60. Ke2 {[%emt 0:00:03]} Kg6 {[%emt 0:00:27]} 61. Nd3 {[%emt 0:01:27]} Qa7 {[%emt 0:00:21]} 62. Nf4+ {[%emt 0:00:04]} Kh7 {[%emt 0:00:25]} 63. Qd3 {[%emt 0:01:18]} Qa2+ {[%emt 0:00:14]} 64. Ke3 {[%emt 0:00:05]} Re1+ {[%emt 0:00:22]} 65. Ne2 {[%emt 0:00:02]} Kg7 {[%emt 0:00:13]} 66. Qb5 {[%emt 0:00:45]} Qc2 {[%emt 0:03:58]} 67. Qd7+ {[%emt 0:01:36]} Kf8 {[%emt 0:00:29]} 68. Qd8+ {[%emt 0:00:09]} Kg7 {[%emt 0:00:05]} 69. Qe7+ {[%emt 0:00:42]} 1/2-1/2

[Event "9th RTU Open 2019"]
[Site "Riga"]
[Date "2019.08.07"]
[Round "4.24"]
[White "Tari, Aryan"]
[Black "Varshini, V."]
[Result "1-0"]
[ECO "A28"]
[WhiteElo "2620"]
[BlackElo "2087"]
[Annotator "ChessBase"]
[PlyCount "45"]
[EventDate "2019.08.05"]
[EventType "swiss"]
[EventCountry "LAT"]
[SourceTitle "playchess.com"]
[Source "ChessBase"]
[SourceQuality "1"]
[TimeControl "5400+30"]

1. c4 {[%emt 0:00:00]} e5 {[%emt 0:00:00]} 2. Nc3 {[%emt 0:00:00]} Nf6 {[%emt 0:00:04]} 3. Nf3 {[%emt 0:00:00]} Nc6 {[%emt 0:00:13]} 4. e4 {[%emt 0:00:03]} Bc5 {[%emt 0:02:32]} 5. Nxe5 {[%emt 0:00:36]} Nxe5 {[%emt 0:03:55]} 6. d4 {[%emt 0:00:02]} Bxd4 {[%emt 0:03:08]} 7. Qxd4 {[%emt 0:00:16]} d6 {[%emt 0:00:14]} 8. Be2 {[%emt 0:04:31]} Be6 {[%emt 0:07:24]} 9. f4 {[%emt 0:05:40]} Nc6 {[%emt 0:04:28]} 10. Qd1 {[%emt 0:04:05]} h6 {[%emt 0:02:35]} 11. O-O {[%emt 0:01:48]} O-O {[%emt 0:03:08]} 12. b3 {[%emt 0:01:01]} Re8 {[%emt 0:04:25]} 13. Bb2 {[%emt 0:01:01]} Bd7 {[%emt 0:01:56]} 14. Bf3 {[%emt 0:01:23]} a6 {[%emt 0:03:07]} 15. Re1 {[%emt 0:06:42]} Nh7 {[%emt 0:08:57]} 16. Qd2 {[%emt 0:01:31]} b5 {[%emt 0:14:10]} 17. cxb5 {[%emt 0:05:53]} axb5 {[%emt 0:00:08]} 18. Nxb5 {[%emt 0:00:11]} Ne5 {[%emt 0:03:43]} 19. Be2 {[%emt 0:03:52]} Ng6 {[%emt 0:03:48]} 20. Bc4 {[%emt 0:00:49]} Bxb5 {[%emt 0:03:28]} 21. Bxb5 {[%emt 0:00:07]} c6 {[%emt 0:00:23]} 22. Bxc6 {[%emt 0:00:51]} Qb6+ {[%emt 0:00:13]} 23. Qd4 {[%emt 0:00:06]} 1-0

[Event "9th RTU Open 2019"]
[Site "Riga"]
[Date "2019.08.07"]
[Round "4.25"]
[White "Saveliev, Alexei"]
[Black "Smirin, Ilia"]
[Result "0-1"]
[ECO "B93"]
[WhiteElo "2355"]
[BlackElo "2594"]
[Annotator "ChessBase"]
[PlyCount "66"]
[EventDate "2019.08.05"]
[EventType "swiss"]
[EventCountry "LAT"]
[SourceTitle "playchess.com"]
[Source "ChessBase"]
[SourceQuality "1"]
[TimeControl "5400+30"]

1. e4 {[%emt 0:00:00]} c5 {[%emt 0:01:43]} 2. Nf3 {[%emt 0:00:00]} d6 {[%emt 0:00:32]} 3. d4 {[%emt 0:00:00]} cxd4 {[%emt 0:00:04]} 4. Nxd4 {[%emt 0:00:00]} Nf6 {[%emt 0:00:06]} 5. Nc3 {[%emt 0:00:00]} a6 {[%emt 0:00:04]} 6. Be2 {[%emt 0:00:35]} Nbd7 {[%emt 0:00:42]} 7. f4 {[%emt 0:11:31]} g6 {[%emt 0:01:07]} 8. Be3 {[%emt 0:03:15]} Bg7 {[%emt 0:00:48]} 9. O-O {[%emt 0:01:11]} O-O {[%emt 0:01:12]} 10. Bf3 {[%emt 0:00:16]} e5 {[%emt 0:02:53]} 11. Nde2 {[%emt 0:00:09]} exf4 {[%emt 0:01:53]} 12. Nxf4 {[%emt 0:00:16]} Ne5 {[%emt 0:00:06]} 13. Be2 {[%emt 0:01:20]} Be6 {[%emt 0:18:44]} 14. Bd4 {[%emt 0:04:03]} Nc6 {[%emt 0:05:03]} 15. Be3 {[%emt 0:02:39]} Re8 {[%emt 0:07:12]} 16. Kh1 {[%emt 0:09:20]} Rc8 {[%emt 0:01:38]} 17. Qd2 {[%emt 0:03:11]} Ne5 {[%emt 0:04:11]} 18. Nxe6 {[%emt 0:07:23]} fxe6 {[%emt 0:03:00]} 19. Bg5 {[%emt 0:01:45]} Rf8 {[%emt 0:06:47]} 20. Rad1 {[%emt 0:00:04]} Nf7 {[%emt 0:03:04]} 21. Bh4 {[%emt 0:01:29]} Nxe4 {[%emt 0:05:11]} 22. Qf4 {[%emt 0:01:50]} Neg5 {[%emt 0:06:10]} 23. Ne4 {[%emt 0:04:23]} h6 {[%emt 0:00:07]} 24. Bd3 {[%emt 0:05:42]} d5 {[%emt 0:11:38]} 25. Nf6+ {[%emt 0:02:40]} Kh8 {[%emt 0:00:14]} 26. Bxg6 {[%emt 0:02:38]} Rc4 {[%emt 0:06:35]} 27. Ne4 {[%emt 0:00:56]} Ne5 {[%emt 0:01:05]} 28. Bxg5 {[%emt 0:04:18]} Rxf4 {[%emt 0:03:22]} 29. Bxd8 {[%emt 0:00:08]} Nxg6 {[%emt 0:00:38]} 30. Ng3 {[%emt 0:01:07]} Rxf1+ {[%emt 0:02:08]} 31. Rxf1 {[%emt 0:00:05]} Rxc2 {[%emt 0:00:05]} 32. Nh5 {[%emt 0:00:06]} Bxb2 {[%emt 0:00:46]} 33. g3 {[%emt 0:00:08]} Rc1 {[%emt 0:00:34]} 0-1

[Event "9th RTU Open 2019"]
[Site "Riga"]
[Date "2019.08.07"]
[Round "4.26"]
[White "Wagner, Dennis"]
[Black "Kruglyakov, Pavlo"]
[Result "1-0"]
[ECO "D77"]
[WhiteElo "2579"]
[BlackElo "2347"]
[Annotator "ChessBase"]
[PlyCount "81"]
[EventDate "2019.08.05"]
[EventType "swiss"]
[EventCountry "LAT"]
[SourceTitle "playchess.com"]
[Source "ChessBase"]
[SourceQuality "1"]
[TimeControl "5400+30"]

1. d4 {[%emt 0:02:40]} Nf6 {[%emt 0:00:00]} 2. Nf3 {[%emt 0:00:09]} g6 {[%emt 0:00:00]} 3. g3 {[%emt 0:00:05]} Bg7 {[%emt 0:00:00]} 4. Bg2 {[%emt 0:00:04]} O-O {[%emt 0:00:00]} 5. O-O {[%emt 0:00:04]} d5 {[%emt 0:00:00]} 6. c4 {[%emt 0:01:11]} dxc4 {[%emt 0:00:00]} 7. Na3 {[%emt 0:00:04]} c3 {[%emt 0:00:00]} 8. bxc3 {[%emt 0:00:05]} c5 9. Bb2 {[%emt 0:00:00]} Nc6 {[%emt 0:03:37]} 10. Re1 {[%emt 0:00:00]} Qb6 {[%emt 0:11:43]} 11. Nc4 {[%emt 0:00:13]} Qb5 {[%emt 0:05:40]} 12. Qb3 {[%emt 0:00:14]} Qa6 {[%emt 0:07:37]} 13. Nce5 {[%emt 0:00:17]} Be6 {[%emt 0:06:52]} 14. Qa3 {[%emt 0:00:02]} Qxa3 {[%emt 0:13:04]} 15. Bxa3 {[%emt 0:00:08]} Nd5 {[%emt 0:21:28]} 16. Nxc6 {[%emt 0:06:00]} bxc6 {[%emt 0:00:02]} 17. Rec1 {[%emt 0:29:16]} Bh6 {[%emt 0:05:45]} 18. e3 {[%emt 0:16:19]} Nxe3 {[%emt 0:01:23]} 19. fxe3 {[%emt 0:00:04]} Bxe3+ {[%emt 0:00:03]} 20. Kh1 {[%emt 0:00:05]} Bxc1 {[%emt 0:00:06]} 21. Rxc1 {[%emt 0:00:08]} Bxa2 {[%emt 0:01:15]} 22. Bxc5 {[%emt 0:01:37]} f6 {[%emt 0:06:44]} 23. c4 {[%emt 0:01:37]} Rab8 {[%emt 0:02:39]} 24. Nd2 {[%emt 0:03:50]} Rb2 {[%emt 0:01:34]} 25. Rd1 {[%emt 0:00:05]} Rfb8 {[%emt 0:02:04]} 26. Bxc6 {[%emt 0:00:46]} Rc2 {[%emt 0:05:15]} 27. Be4 {[%emt 0:04:50]} Rc3 {[%emt 0:01:50]} 28. Bd5+ {[%emt 0:03:41]} Kg7 {[%emt 0:01:25]} 29. Bxe7 {[%emt 0:00:57]} Rc2 {[%emt 0:02:29]} 30. Be4 {[%emt 0:15:38]} Rc3 {[%emt 0:00:02]} 31. d5 {[%emt 0:00:44]} Bxc4 {[%emt 0:00:01]} 32. Nxc4 {[%emt 0:02:14]} Rxc4 {[%emt 0:00:20]} 33. Bg2 {[%emt 0:02:08]} Kf7 {[%emt 0:02:54]} 34. d6 {[%emt 0:00:08]} Rc2 {[%emt 0:00:28]} 35. Bd5+ {[%emt 0:02:25]} Ke8 {[%emt 0:00:01]} 36. Bxf6 {[%emt 0:00:54]} Kd7 {[%emt 0:00:15]} 37. Bg2 {[%emt 0:01:08]} Ke6 {[%emt 0:00:40]} 38. Bg5 {[%emt 0:02:58]} Kf5 {[%emt 0:00:27]} 39. Be3 {[%emt 0:04:38]} g5 {[%emt 0:01:13]} 40. Bxa7 {[%emt 0:00:57]} Rbb2 {[%emt 0:00:29]} 41. d7 {[%emt 0:01:13]} 1-0